[Event "GER-chT States Women 2022"]
[Site "Braunfels"]
[Date "2022.06.18"]
[Round "4.13"]
[White "Just, Anita"]
[Black "Gheng, Simona"]
[Result "1/2-1/2"]
[ECO "B78"]
[WhiteElo "1895"]
[BlackElo "1944"]
[Annotator "TA"]
[PlyCount "81"]
[EventDate "2022.06.15"]
[EventType "swiss"]
[EventCountry "GER"]
[SourceTitle "playchess.com"]
[Source "ChessBase"]
[SourceQuality "1"]
[TimeControl "40/5400+30:1800+30"]

{[%evp 27,81,89,91,47,60,8,89,88,87,-289,-284,-279,-121,-95,0,0,0,-360,-332,-292,-268,-264,-128,-130,-132,-129,-43,-54,-10,-10,0,0,0,0,0,0,0,0,45,44,46,44,61,60,108,84,67,16,38,12,10,11,18,0,22,0]} 1. e4 {[%emt 0:02:46]} c5 {[%emt 0:00:08]} 2. Nf3 {[%emt 0:00:06]} d6 {[%emt 0:00:06]} 3. d4 {[%emt 0:00:05]} cxd4 {[%emt 0:00:20]} 4. Nxd4 {[%emt 0:03:34]} Nf6 {[%emt 0:00:13]} 5. Nc3 {[%emt 0:00:52]} g6 {[%emt 0:00:19]} 6. Bc4 {[%emt 0:02:43]} Bg7 {[%emt 0:00:17]} 7. Be3 {[%emt 0:00:53]} Nc6 {[%emt 0:02:15]} 8. f3 {[%emt 0:06:28]} Bd7 {[%emt 0:00:28]} 9. Qd2 {[%emt 0:01:00]} O-O {[%emt 0:00:08]} 10. O-O-O {[%emt 0:00:42]} Rc8 {[%emt 0:00:16]} 11. Bb3 {[%emt 0:07:06]} Ne5 {[%emt 0:00:10]} 12. Kb1 {[%emt 0:01:05]} Nc4 {[%emt 0:01:54]} 13. Bxc4 {[%emt 0:00:15]} Rxc4 {[%emt 0:00:05]} 14. g4 {[%emt 0:02:52]} a6 {[%emt 0:03:13]} 15. Nde2 {[%emt 0:06:29] B78: Sicilian Dragon: Yugoslav Attack, 9 Bc4 Bd7 10 0-0-0 Rc8.} b5 $1 {[%emt 0:04:37]} 16. e5 {[%emt 0:06:48]} (16. h4 $14) 16... b4 {[%emt 0:01:24]} (16... dxe5 $2 17. g5 b4 18. gxf6 bxc3 19. Qxd7 $18) (16... Ne8 $1 $11 {remains equal.}) 17. exf6 $16 {[%emt 0:02:41] White is better.} (17. Qd3 $6 bxc3 18. Qxc4 Bb5 19. Qxc3 Bxe2 20. exf6 Bxf6 $11) 17... bxc3 {[%emt 0:00:55]} 18. fxe7 $2 {[%emt 0:06:00][%mdl 8192]} ({Don't play} 18. Qd3 $6 Bxf6 19. Qxc4 Bb5 $11) (18. Nxc3 $16 {keeps the pressure on.} Bxf6 19. Nd5) 18... Qxe7 $19 {[%emt 0:03:40]} 19. Nxc3 {[%emt 0:20:29] [#]} Bxc3 $146 {[%emt 0:06:37]} (19... Rb8 $1 $19 {And now ...Bxc3 would win.} 20. Qxd6 (20. Bg5 $2 Qe5 $19) 20... Qxd6 21. Rxd6 Rxc3) ({Predecessor:} 19... Rxc3 20. bxc3 Rb8+ 21. Ka1 Qf6 22. Bd4 Qxf3 23. Bxg7 Kxg7 24. Qd4+ Kg8 25. Rhf1 Qc6 {½-½ (54) Just,A (1999)-Shmois,S (1753) Erfurt 2014}) 20. bxc3 $17 {[%emt 0:00:17]} Be6 {[%emt 0:00:16]} (20... Ra4 $17 {Hoping for ...Rb8+.} 21. Bh6 (21. Qxd6 $2 Qxe3 22. Rd3 Qa7 $19) 21... Rb8+ 22. Kc1 Rxa2) 21. Kc1 $11 {[%emt 0:09:27]} d5 {[%emt 0:08:31] ( -> ...Qa3+)} 22. Qf2 $2 {[%emt 0:04:17][%mdl 8192]} (22. Qd3 $1 $11) 22... Qa3+ $19 {[%emt 0:04:52]} 23. Kd2 {[%emt 0:00:17][%cal Bc1d2,Bd2e2,Be2f1,Bf1g1][%mdl 32]} Qxc3+ {[%emt 0:01:01]} 24. Ke2 {[%emt 0:00:07] [#]} Qxc2+ {[%emt 0:03:07]} (24... Bxg4 $1 $19 {[%mdl 512] is more deadly.} 25. fxg4 Re4) 25. Rd2 $17 {[%emt 0:00:28] [#]} Qa4 {[%emt 0:00:48] White must now prevent ...f5.} 26. Rhd1 {[%emt 0:01:11]} Rfc8 {[%emt 0:01:53]} (26... Qb5 $17 {Strongly threatening ...d4.} 27. Kf1 Rxg4+ 28. Qe2 Rc4) 27. Kf1 {[%emt 0:00:51]} Rc2 {[%emt 0:07:49]} 28. Rxc2 $1 {[%emt 0:01:46][%mdl 64] Remove Defender} Rxc2 {[%emt 0:00:07]} 29. Rd2 {[%emt 0:00:37]} Rxd2 {[%emt 0:00:07]} 30. Qxd2 $11 {[%emt 0:00:19][%mdl 4096] Endgame KQB-KQB} d4 {[%emt 0:00:51]} 31. Bxd4 {[%emt 0:03:03]} Bc4+ {[%emt 0:15:23]} 32. Kg1 {[%emt 0:01:01]} Qe8 {[%emt 0:07:28]} 33. Bc3 {[%emt 0:01:27]} f6 {[%emt 0:04:42]} (33... Qb8 $2 34. Qd4 Qb1+ 35. Kf2 Qf1+ 36. Kg3 $18) 34. Bxf6 {[%emt 0:02:50]} Qe6 {[%emt 0:00:24]} 35. Bc3 {[%emt 0:01:01]} Bxa2 {[%emt 0:02:10]} (35... Qe2 $14 36. Qd8+ Kf7 37. Qd7+ Qe7) 36. Qd4 {[%emt 0:01:34][%csl Gc3][%cal Rd4g7]} Kf7 {[%emt 0:01:21]} 37. Qg7+ {[%emt 0:00:32]} Ke8 {[%emt 0:00:09]} 38. Qh8+ {[%emt 0:00:15]} Qg8 $1 {[%emt 0:00:44] The position is equal.} 39. Qe5+ {[%emt 0:00:07]} Qe6 {[%emt 0:00:21]} 40. Qh8+ {[%emt 0:00:05]} Qg8 $1 {[%emt 0:00:05]} 41. Qe5+ {[%emt 0:30:12] Whites escaped into a draw.  Weighted Error Value: White=0.51/Black=0.28 (precise)} 1/2-1/2

[Event "GER-chT States Women 2022"]
[Site "Braunfels"]
[Date "2022.06.18"]
[Round "4.14"]
[White "Timofeeva, Galina"]
[Black "Lowke, Kathrin"]
[Result "1/2-1/2"]
[ECO "B30"]
[WhiteElo "1979"]
[BlackElo "1850"]
[Annotator "TA"]
[PlyCount "60"]
[EventDate "2022.06.15"]
[EventType "swiss"]
[EventCountry "GER"]
[SourceTitle "playchess.com"]
[Source "ChessBase"]
[SourceQuality "1"]
[TimeControl "40/5400+30:1800+30"]

{[%evp 15,60,0,11,0,25,0,0,0,29,29,35,31,34,37,64,26,33,47,38,26,16,0,28,19,33,20,39,0,0,0,0,-28,-8,-17,0,0,0,0,18,17,14,0,9,0,10,2,16]} 1. e4 {[%emt 0:00:02]} c5 {[%emt 0:00:19]} 2. Nf3 {[%emt 0:00:05]} Nc6 {[%emt 0:01:23]} 3. d3 {[%emt 0:00:11]} d6 {[%emt 0:00:29]} 4. g3 {[%emt 0:00:12]} g6 {[%emt 0:00:23]} 5. Bg2 {[%emt 0:00:07]} Bg7 {[%emt 0:00:05]} 6. O-O {[%emt 0:00:21]} Nf6 {[%emt 0:00:22]} 7. Nbd2 {[%emt 0:02:00] 7.Re1 is becoming the main line.} O-O {[%emt 0:00:11]} 8. a4 {[%emt 0:00:43]} Qc7 {[%emt 0:03:11]} 9. Nc4 {[%emt 0:00:47] [#] A05: Réti Opening: 1 Nf3 Nf6.} Ng4 $146 {[%emt 0:03:16]} ({Predecessor:} 9... b6 10. e5 dxe5 11. Nfxe5 Bb7 12. Bf4 Nxe5 13. Bxe5 Qd7 14. Re1 Rfe8 15. Qe2 Rad8 16. b3 Bxg2 17. Kxg2 {½-½ (40) Schroeder,J (2074)-Zuse,P (2215) Bad Homburg 2016}) 10. h3 {[%emt 0:04:52]} Nge5 {[%emt 0:00:07]} 11. Nfxe5 {[%emt 0:00:11]} Nxe5 {[%emt 0:00:30]} 12. Ne3 {[%emt 0:00:08]} e6 {[%emt 0:05:11]} 13. f4 {[%emt 0:02:35]} Nc6 {[%emt 0:07:23]} 14. f5 {[%emt 0:00:30]} Bd4 {[%emt 0:03:57]} 15. fxg6 {[%emt 0:02:32]} fxg6 {[%emt 0:13:49]} 16. Rxf8+ {[%emt 0:00:16]} Kxf8 {[%emt 0:00:04]} 17. c3 {[%emt 0:00:11]} Bg7 {[%emt 0:03:43]} 18. Qe2 {[%emt 0:10:07]} Qe7 {[%emt 0:03:15]} 19. Bd2 {[%emt 0:01:05]} Bd7 {[%emt 0:00:27]} 20. Ng4 {[%emt 0:03:43]} Kg8 {[%emt 0:04:35]} (20... Ne5 {is more complex.} 21. Nh6 Nf7 22. Qf1 e5) 21. h4 {[%emt 0:02:51]} Rf8 $1 {[%emt 0:02:25]} 22. Bg5 {[%emt 0:01:36]} Qe8 {[%emt 0:00:28]} 23. Bh6 {[%emt 0:19:56]} e5 {[%emt 0:02:10] [#] Strongly threatening ...Bxg4.} 24. Bg5 {[%emt 0:05:12] The position is equal.} Nd8 {[%emt 0:04:02]} 25. a5 {[%emt 0:09:05]} Ne6 {[%emt 0:04:20]} 26. Bd2 {[%emt 0:00:41]} Qc8 {[%emt 0:05:50][%cal Oe6f4] aiming for ...Nf4!} 27. Ne3 {[%emt 0:01:51]} Nc7 {[%emt 0:00:33]} 28. Nc4 {[%emt 0:01:46]} Ne8 {[%emt 0:03:15]} 29. Bg5 {[%emt 0:03:40] Hoping for Be7.} Bf6 {[%emt 0:02:04] Against Be7} 30. Be3 {[%emt 0:04:08]} Bg4 {[%emt 0:02:58] Weighted Error Value: White=0.09 (flawless) /Black=0.10 (very precise)} 1/2-1/2

[Event "GER-chT States Women 2022"]
[Site "Braunfels"]
[Date "2022.06.18"]
[Round "4.15"]
[White "Kosovska, Olena"]
[Black "Noppes, Marina"]
[Result "1/2-1/2"]
[ECO "B23"]
[WhiteElo "1827"]
[BlackElo "1922"]
[Annotator "TA"]
[PlyCount "102"]
[EventDate "2022.06.15"]
[EventType "swiss"]
[EventCountry "GER"]
[SourceTitle "playchess.com"]
[Source "ChessBase"]
[SourceQuality "1"]
[TimeControl "40/5400+30:1800+30"]

{[%evp 9,102,-13,-3,-13,11,-36,-11,-344,-343,-372,-361,-350,-253,-297,-300,-315,-316,-315,-317,-317,-237,-331,-331,-331,-333,-367,-362,-382,-356,-334,-328,-370,-379,-372,-390,-396,-397,-406,-362,-399,-401,-604,-584,-768,-263,-272,-256,-265,-265,-258,-271,-262,-239,-363,-370,-386,-222,-783,-767,-727,-600,-585,-573,-584,-575,-569,-564,-602,-602,-582,-581,-551,-483,-472,-428,-460,-456,-397,-363,-376,-347,-404,-184,-470,-467,-462,-448,-596,-524,-843,-828,-798,-772,-1943,-1783]} 1. e4 {[%emt 0:00:09]} c5 {[%emt 0:00:05]} 2. Nc3 {[%emt 0:00:09]} Nc6 {[%emt 0:00:03]} 3. f4 {[%emt 0:00:08]} g6 {[%emt 0:00:30]} 4. Bb5 {[%emt 0:00:30]} Nd4 {[%emt 0:01:18]} 5. Nf3 {[%emt 0:00:56]} Nxb5 {[%emt 0:07:16]} 6. Nxb5 {[%emt 0:00:09] B23: Closed Sicilian: Lines without g3.} d5 {[%emt 0:00:09]} 7. e5 {[%emt 0:01:05]} (7. exd5 $11 a6 8. Nc3) 7... d4 {[%emt 0:16:09] [#]} 8. d3 $146 {[%emt 0:00:39][%mdl 8192]} (8. O-O $11) ({Predecessor:} 8. c4 Bg7 9. O-O Nh6 10. d3 O-O 11. Qe2 Bg4 12. h3 Bd7 13. Na3 f6 14. Bd2 {½-½ (63) Montoro,G (2027)-Iturrizaga Bonelli,E (2656) Montevideo 2011}) 8... Qa5+ $19 {[%emt 0:00:37]} 9. Nc3 {[%emt 0:00:53]} dxc3 {[%emt 0:00:16]} 10. bxc3 {[%emt 0:00:12]} Bg4 {[%emt 0:03:04]} 11. Bd2 {[%emt 0:00:38]} c4 {[%emt 0:04:05]} 12. O-O {[%emt 0:02:20]} e6 {[%emt 0:07:31]} 13. h3 {[%emt 0:02:43]} Bxf3 {[%emt 0:00:10]} 14. Qxf3 {[%emt 0:00:10]} Qd5 {[%emt 0:00:44]} 15. Qe2 {[%emt 0:05:53]} Rd8 {[%emt 0:08:45][%cal Rc4d3]} 16. d4 {[%emt 0:03:12]} Ne7 {[%emt 0:00:46]} 17. Rab1 {[%emt 0:00:14]} Nf5 {[%emt 0:01:24] aiming for ...Ng3.} 18. Kh2 {[%emt 0:00:17] Inhibits Ng3.} h5 {[%emt 0:01:02]} 19. a4 {[%emt 0:01:14]} a6 {[%emt 0:05:44]} 20. Rb6 {[%emt 0:01:33]} h4 {[%emt 0:00:39]} 21. Rfb1 {[%emt 0:01:09]} Ng3 {[%emt 0:02:06]} 22. Qg4 {[%emt 0:03:12]} Rd7 {[%emt 0:01:04]} 23. Be1 {[%emt 0:01:44]} Nf5 {[%emt 0:14:42]} 24. Bf2 {[%emt 0:01:57]} Be7 {[%emt 0:03:30]} 25. Rg1 {[%emt 0:03:50]} (25. Qe2 $142) 25... Qa5 {[%emt 0:02:04]} 26. Rxe6 {[%emt 0:03:58]} Nh6 $2 {[%emt 0:07:49]} (26... fxe6 27. Qxg6+ Kd8 28. Qxe6 Rf8) 27. Rxe7+ {[%emt 0:04:27]} Rxe7 {[%emt 0:00:01]} (27... Kxe7 $2 {perishes.} 28. Bxh4+ Ke8 29. Qg5 $19) 28. Qc8+ {[%emt 0:01:03]} Qd8 {[%emt 0:00:08]} 29. Qxd8+ {[%emt 0:10:32]} Kxd8 {[%emt 0:00:01]} 30. Bxh4 {[%emt 0:00:11] [#]} f6 $1 {[%emt 0:00:21]} 31. g4 {[%emt 0:05:08]} ({But not} 31. Bxf6 Ng4+ 32. Kg3 Nxf6 33. exf6 Re3+ 34. Kg4 Rxc3 $19) (31. g3 $142) 31... Ng8 {[%emt 0:02:02]} 32. Bf2 {[%emt 0:18:26]} g5 {[%emt 0:01:00]} (32... f5 $142 33. gxf5 gxf5) 33. exf6 $2 {[%emt 0:06:37]} (33. f5) 33... Nxf6 {[%emt 0:02:01]} 34. fxg5 {[%emt 0:04:20]} Re2 {[%emt 0:03:15]} 35. gxf6 {[%emt 0:00:58]} Rxf2+ {[%emt 0:00:02]} 36. Kg3 {[%emt 0:00:02]} Rxf6 {[%emt 0:00:09]} 37. g5 {[%emt 0:01:06]} Re6 {[%emt 0:01:03]} 38. h4 {[%emt 0:01:29]} Re4 {[%emt 0:01:44]} 39. Rh1 {[%emt 0:00:42]} Ke7 {[%emt 0:03:53]} 40. h5 {[%emt 0:00:24]} Kf7 {[%emt 0:00:36]} 41. Kf3 {[%emt 0:34:34]} Re6 {[%emt 0:31:17]} 42. Kg4 {[%emt 0:00:49]} Re2 {[%emt 0:01:45]} 43. Rf1+ {[%emt 0:02:07]} Kg8 {[%emt 0:00:00] [#] Strongly threatening ...Rg2+.} 44. h6 {[%emt 0:00:00]} Rxc2 {[%emt 0:00:00]} 45. Rf3 {[%emt 0:00:00]} Rd2 {[%emt 0:00:00]} (45... Rh7 $142 46. Re3 Rd7 47. Re8+ Kh7) 46. Kh5 $2 {[%emt 0:00:00]} (46. Rf5) 46... Rd3 {[%emt 0:00:00] Black is clearly winning.} 47. Rf5 {[%emt 0:00:00]} Rxc3 {[%emt 0:00:00] Hoping for ...Rh3+.} 48. Kg6 {[%emt 0:00:00]} Re3 {[%emt 0:00:00] White must now prevent ...Rh7.} 49. Rc5 {Threatening mate with Rc8+.} Re6+ 50. Kh5 Rc6 {( -> ...Rxc5)} 51. Rd5 Rc8 {[%mdl 32768] White got outplayed after the opening.  Weighted Error Value: White=0.72/Black=0.32. An unexpected result.} 1/2-1/2

[Event "GER-chT States Women 2022"]
[Site "Braunfels"]
[Date "2022.06.18"]
[Round "4.16"]
[White "Roesler, Hannah Clara"]
[Black "Gottschall, Ina"]
[Result "1-0"]
[ECO "B06"]
[WhiteElo "1718"]
[BlackElo "1612"]
[Annotator "NA RC"]
[PlyCount "82"]
[EventDate "2022.06.15"]
[EventType "swiss"]
[EventCountry "GER"]
[SourceTitle "playchess.com"]
[Source "ChessBase"]
[SourceQuality "1"]
[TimeControl "40/5400+30:1800+30"]

1. e4 {[%emt 0:00:04]} g6 {[%emt 0:00:09]} 2. d4 {[%emt 0:00:06]} Bg7 {[%emt 0:00:21]} 3. Nc3 {[%emt 0:00:41]} d6 {[%emt 0:00:16]} 4. Be3 {[%emt 0:00:50]} Nf6 {[%emt 0:00:11]} 5. Qd2 {[%emt 0:00:49]} O-O {[%emt 0:06:20]} 6. Bh6 {[%emt 0:01:09]} c5 {[%emt 0:01:27]} 7. Nf3 {[%emt 0:03:16]} cxd4 {[%emt 0:04:54]} 8. Nxd4 {[%emt 0:00:34]} Bxh6 {[%emt 0:07:35]} 9. Qxh6 {[%emt 0:00:13]} Qb6 {[%emt 0:05:31]} 10. O-O-O {[%emt 0:01:20]} Ng4 {[%emt 0:03:30]} 11. Qd2 {[%emt 0:01:23]} e5 {[%emt 0:02:11]} 12. h3 {[%emt 0:09:01]} Nxf2 {[%emt 0:09:15]} 13. Qxf2 {[%emt 0:01:22]} exd4 {[%emt 0:00:09]} 14. Nd5 {[%emt 0:05:51]} Qa5 {[%emt 0:12:11]} 15. Qxd4 {[%emt 0:07:21]} Nc6 {[%emt 0:05:38]} 16. Nf6+ {[%emt 0:02:03]} Kh8 {[%emt 0:00:14]} 17. Qxd6 {[%emt 0:03:19]} Be6 {[%emt 0:00:26]} 18. Qf4 {[%emt 0:12:03]} Kg7 {[%emt 0:02:32]} 19. Ng4 {[%emt 0:10:17]} f5 {[%emt 0:11:18]} 20. Qh6+ {[%emt 0:05:24]} Kh8 {[%emt 0:00:38]} 21. exf5 {[%emt 0:00:51]} Qxf5 {[%emt 0:02:59]} 22. Bd3 {[%emt 0:01:23]} Qf4+ {[%emt 0:00:31]} 23. Qxf4 {[%emt 0:01:11]} Rxf4 {[%emt 0:00:07]} 24. Ne3 {[%emt 0:00:58]} Nb4 {[%emt 0:02:38]} 25. a3 {[%emt 0:01:10]} Nxd3+ {[%emt 0:01:27]} 26. Rxd3 {[%emt 0:00:31]} Raf8 {[%emt 0:01:27]} 27. Rhd1 {[%emt 0:02:12]} Rf2 {[%emt 0:03:38]} 28. R3d2 {[%emt 0:01:03]} Rxd2 {[%emt 0:02:21]} 29. Rxd2 {[%emt 0:01:19]} Kg7 {[%emt 0:02:58]} 30. b4 {[%emt 0:01:22]} Rc8 {[%emt 0:03:41]} 31. Kb2 {[%emt 0:04:37]} a6 {[%emt 0:01:18]} 32. Rd6 {[%emt 0:02:07]} Kf6 {[%emt 0:00:44]} 33. Rb6 {[%emt 0:01:01]} Rb8 {[%emt 0:02:50]} 34. c4 {[%emt 0:02:09]} h5 {[%emt 0:01:03]} 35. c5 {[%emt 0:02:29]} Rd8 {[%emt 0:01:53]} 36. Kc3 {[%emt 0:07:48]} Rd7 {[%emt 0:01:36]} 37. Nc4 {[%emt 0:02:40]} Ke7 {[%emt 0:01:10]} 38. Ne5 {[%emt 0:01:13]} Rd8 {[%emt 0:01:23]} 39. Nxg6+ {[%emt 0:01:57]} Kd7 {[%emt 0:00:41]} 40. Rxb7+ {[%emt 0:00:47]} Kc6 {[%emt 0:00:13]} 41. Rb6+ {[%emt 0:30:26]} Kd5 1-0

[Event "GER-chT States Women 2022"]
[Site "Braunfels"]
[Date "2022.06.18"]
[Round "4.17"]
[White "Rieping, Lea"]
[Black "Tuzi, Bruna"]
[Result "1-0"]
[ECO "D00"]
[WhiteElo "1912"]
[BlackElo "1999"]
[Annotator "TA"]
[PlyCount "37"]
[EventDate "2022.06.15"]
[EventType "swiss"]
[EventCountry "GER"]
[SourceTitle "playchess.com"]
[Source "ChessBase"]
[SourceQuality "1"]
[TimeControl "40/5400+30:1800+30"]

{[%evp 9,37,15,193,193,248,252,243,245,251,242,360,356,429,389,385,361,366,359,756,734,894,694,682,674,637,568,904,877,1631,639]} 1. d4 {[%emt 0:00:02]} d5 {[%emt 0:00:06]} 2. Nc3 {[%emt 0:00:05]} Nf6 {[%emt 0:01:09]} 3. Bf4 {[%emt 0:00:06]} c6 {[%emt 0:01:15]} 4. e3 {[%emt 0:00:21]} Bf5 {[%emt 0:00:28]} 5. f3 {[%emt 0:00:36]} Nh5 $2 {[%emt 0:07:10]} (5... h6 $11) 6. Bxb8 $18 {[%emt 0:00:19] D00: 1 d4 d5: Unusual lines.} Qxb8 {[%emt 0:00:53]} (6... Rxb8 {was necessary.} 7. g4 e5) 7. g4 {[%emt 0:00:05]} Ng3 {[%emt 0:00:33]} 8. hxg3 {[%emt 0:00:16] White is clearly better.} Qxg3+ {[%emt 0:00:06]} 9. Kd2 {[%emt 0:00:35]} Bg6 {[%emt 0:00:29] [#]} (9... Bd7 {might work better.} 10. Bh3 e5) 10. f4 $146 {[%emt 0:07:19][%cal Bf3f4,Bf4f5][%mdl 32]} ({Predecessor:} 10. Qe1 Qc7 11. Rd1 e6 12. Kc1 b5 13. Bd3 f5 14. gxf5 exf5 15. e4 dxe4 16. fxe4 {1-0 (29) Yetkin,A (1775)-Oztekin,M (1866) Konya 2019}) 10... f5 {[%emt 0:01:04]} 11. gxf5 {[%emt 0:00:48]} Bxf5 {[%emt 0:01:09]} 12. Qf3 {[%emt 0:00:13]} Qg6 {[%emt 0:00:13]} 13. Bh3 {[%emt 0:01:11]} Bxc2 $2 {[%emt 0:00:13]} (13... e6 14. Qe2 Bd6) 14. f5 {[%emt 0:00:08] White is clearly winning.} Be4 {[%emt 0:03:03]} 15. Nxe4 {[%emt 0:00:19]} dxe4 {[%emt 0:00:11]} 16. fxg6 {[%emt 0:00:18] [#] Threatening mate with Qf5.} exf3 {[%emt 0:00:10]} 17. Nxf3 Rd8 {[%emt 0:00:25]} 18. Ne5 {[%emt 0:00:38]} hxg6 {[%emt 0:00:36] [#]} 19. Bd7+ $1 {[%emt 0:00:09][%mdl 512] White took control after the opening.  Weighted Error Value: White=0.31/Black=0.93} 1-0

[Event "GER-chT States Women 2022"]
[Site "Braunfels"]
[Date "2022.06.18"]
[Round "4.18"]
[White "Bluebaum, Johanna"]
[Black "Nizamova, Rita"]
[Result "1-0"]
[ECO "A59"]
[WhiteElo "2049"]
[BlackElo "1814"]
[Annotator "NA RC"]
[PlyCount "107"]
[EventDate "2022.06.15"]
[EventType "swiss"]
[EventCountry "GER"]
[SourceTitle "playchess.com"]
[Source "ChessBase"]
[SourceQuality "1"]
[TimeControl "40/5400+30:1800+30"]

1. d4 {[%emt 0:10:24]} Nf6 {[%emt 0:00:10]} 2. c4 {[%emt 0:00:12]} c5 {[%emt 0:00:05]} 3. d5 {[%emt 0:00:26]} b5 {[%emt 0:00:06]} 4. cxb5 {[%emt 0:00:09]} a6 {[%emt 0:00:04]} 5. bxa6 {[%emt 0:01:12]} Bxa6 {[%emt 0:00:02]} 6. Nc3 {[%emt 0:00:08]} g6 {[%emt 0:00:12]} 7. e4 {[%emt 0:00:29]} Bxf1 {[%emt 0:00:06]} 8. Kxf1 {[%emt 0:00:06]} d6 {[%emt 0:00:08]} 9. g3 {[%emt 0:00:32]} Bg7 {[%emt 0:00:10]} 10. Kg2 {[%emt 0:00:12]} O-O {[%emt 0:00:17]} 11. Nf3 {[%emt 0:04:27]} Qb6 {[%emt 0:06:41]} 12. a4 {[%emt 0:02:49]} Nbd7 {[%emt 0:05:35]} 13. Qc2 {[%emt 0:02:31]} Qb4 {[%emt 0:05:29]} 14. Re1 {[%emt 0:09:19]} (14. Rd1 $16) 14... Rfb8 {[%emt 0:02:17]} 15. Rb1 {[%emt 0:07:21]} Ng4 {[%emt 0:03:27]} 16. Bg5 {[%emt 0:06:53]} Re8 {[%emt 0:10:02]} 17. h3 {[%emt 0:04:12]} Nge5 {[%emt 0:05:27]} 18. Nxe5 {[%emt 0:00:56]} Nxe5 {[%emt 0:00:26]} 19. b3 {[%emt 0:23:30]} c4 {[%emt 0:11:05]} 20. Nb5 {[%emt 0:04:32]} cxb3 {[%emt 0:06:59]} 21. Qxb3 {[%emt 0:00:12]} Qxb3 {[%emt 0:00:07]} 22. Rxb3 {[%emt 0:00:06]} Rxa4 {[%emt 0:00:06]} 23. Nc7 {[%emt 0:00:49]} Rc8 {[%emt 0:01:32] [#]} 24. Bxe7 $1 {[%emt 0:05:24]} Ra7 {[%emt 0:00:33]} 25. Bxd6 {[%emt 0:00:37]} Raxc7 {[%emt 0:01:25]} 26. Bxc7 {[%emt 0:00:08]} Rxc7 {[%emt 0:00:01]} 27. Rb8+ {[%emt 0:01:42]} Bf8 {[%emt 0:00:06]} 28. Re2 {[%emt 0:00:48]} f6 {[%emt 0:03:21]} 29. f4 {[%emt 0:00:27]} Nd7 {[%emt 0:01:36]} 30. Ra8 {[%emt 0:00:24]} Kf7 {[%emt 0:20:13]} (30... Kg7 {was worth a try.} 31. e5 fxe5) 31. Rea2 $2 {[%emt 0:02:34]} (31. e5 $18 {and the rest is easy.} Nc5 32. Rc2) 31... Bc5 {[%emt 0:06:35] [#]} (31... Bd6 $16 32. R2a7 Rxa7 33. Rxa7 Ke7) 32. R8a6 {[%emt 0:01:13]} (32. Rc2 $1 $18 {is the precise move to win.}) 32... Bd4 {[%emt 0:05:35]} 33. R6a4 {[%emt 0:03:31]} Bb6 {[%emt 0:02:10]} 34. Re2 {[%emt 0:00:44]} Ke7 {[%emt 0:04:18]} 35. Ra6 {[%emt 0:01:22]} Kd6 {[%emt 0:00:48]} 36. Rb2 {[%emt 0:01:49]} Rb7 {[%emt 0:00:01]} 37. Rb5 {[%emt 0:01:38]} Rb8 {[%emt 0:00:51]} 38. Kf3 {[%emt 0:00:46]} Rb7 {[%emt 0:00:36]} 39. Ra8 {[%emt 0:02:07]} Rc7 {[%emt 0:00:43]} 40. Re8 {[%emt 0:01:40]} Rc3+ {[%emt 0:00:08]} 41. Kg2 {[%emt 0:31:07]} Rc2+ {[%emt 0:03:56]} 42. Kf1 {[%emt 0:00:00]} Rc3 $2 {[%emt 0:07:02]} (42... Kc7 43. Re7 Bd4) 43. Re6+ $2 {[%emt 0:00:00]} ({White has to play} 43. e5+ $18 fxe5 44. fxe5+ Kc7 45. e6 Rc1+ 46. Ke2) 43... Kc7 {[%emt 0:00:03]} 44. Re7 {[%emt 0:00:00]} Bd4 {[%emt 0:06:35] [#]} 45. Rxh7 {[%emt 0:00:00]} ({White should try} 45. Ra5 $1 $16 {[%cal Ra5a6]}) 45... Rxg3 {[%emt 0:01:39]} 46. Rb4 {[%emt 0:00:00]} Be3 {[%emt 0:06:34]} 47. Rc4+ $18 {[%emt 0:00:00]} Kd8 {[%emt 0:01:26]} 48. Rh8+ {[%emt 0:00:00]} Ke7 {[%emt 0:00:03]} 49. Rc7 {[%emt 0:00:00]} Bxf4 {[%emt 0:04:14]} 50. Rh7+ {[%emt 0:00:00]} Kd8 {[%emt 0:00:03]} 51. Rcxd7+ {[%emt 0:00:00]} Kc8 {[%emt 0:00:45]} 52. Rdg7 {[%emt 0:00:00]} Rf3+ {[%emt 0:00:34]} 53. Kg2 {[%emt 0:00:00]} Rg3+ {[%emt 0:00:11]} 54. Kf2 {[%emt 0:00:00]} 1-0